[Event "*** Titled Tuesday Blitz"]
[Site "Chess.com"]
[Date "2021.03.30"]
[Round "9"]
[White "Blitzking642"]
[Black "Chesswizard_2007"]
[Result "0-1"]
[WhiteElo "2440"]
[BlackElo "2678"]
[TimeControl "180+1"]
[EndTime "11:44:53 PDT"]
[Termination "Chesswizard_2007 won by resignation"]

1. e4 {[%clk 0:03:00.9]} 1... c5 {[%clk 0:02:59.9]} 2. Nf3 {[%clk 0:03:00.9]}
2... Nf6 {[%clk 0:03:00.6]} 3. e5 {[%clk 0:02:59.1]} 3... Nd5 {[%clk 0:02:59.7]}
4. Nc3 {[%clk 0:02:57.8]} 4... e6 {[%clk 0:02:59.3]} 5. Ne4 {[%clk 0:02:56.5]}
5... f5 {[%clk 0:02:57.6]} 6. Nc3 {[%clk 0:02:53.9]} 6... Nc7 {[%clk 0:02:46.7]}
7. d4 {[%clk 0:02:48.7]} 7... cxd4 {[%clk 0:02:43.6]} 8. Nxd4 {[%clk 0:02:47.2]}
8... Be7 {[%clk 0:02:41.9]} 9. Bf4 {[%clk 0:02:33.2]} 9... Nc6 {[%clk
0:02:36.9]} 10. Ndb5 {[%clk 0:02:28.8]} 10... Nxb5 {[%clk 0:02:36.5]} 11. Nxb5
{[%clk 0:02:28.5]} 11... O-O {[%clk 0:02:36.7]} 12. h4 {[%clk 0:02:18.4]} 12...
Qb6 {[%clk 0:02:21.8]} 13. Qd2 {[%clk 0:01:41.6]} 13... a6 {[%clk 0:02:11.7]}
14. Nc3 {[%clk 0:01:28.3]} 14... Qxb2 {[%clk 0:02:08.2]} 15. Rb1 {[%clk
0:01:27.3]} 15... Qa3 {[%clk 0:02:01.8]} 16. Bc4 {[%clk 0:01:08.8]} 16... Qa5
{[%clk 0:01:55]} 17. O-O {[%clk 0:00:57.8]} 17... Nxe5 {[%clk 0:01:51.1]} 18.
Be2 {[%clk 0:00:54.1]} 18... Bxh4 {[%clk 0:01:42.6]} 19. Qd6 {[%clk 0:00:42.4]}
19... Bf6 {[%clk 0:01:35.1]} 20. Rb3 {[%clk 0:00:36.3]} 20... Nf7 {[%clk
0:01:31.8]} 21. Qd3 {[%clk 0:00:31.4]} 21... d5 {[%clk 0:01:27.2]} 22. Bd2
{[%clk 0:00:29.1]} 22... Qc7 {[%clk 0:01:25.2]} 23. Bf3 {[%clk 0:00:25.7]} 23...
Ne5 {[%clk 0:01:23.9]} 0-1

[Event "*** Titled Tuesday Blitz"]
[Site "Chess.com"]
[Date "2021.03.30"]
[Round "9"]
[White "eljanov"]
[Black "Borsuk_Konstantin"]
[Result "1-0"]
[WhiteElo "2853"]
[BlackElo "2662"]
[TimeControl "180+1"]
[EndTime "11:45:13 PDT"]
[Termination "eljanov won by resignation"]

1. Nf3 {[%clk 0:03:00.9]} 1... Nf6 {[%clk 0:02:58.7]} 2. c4 {[%clk 0:03:00.5]}
2... b6 {[%clk 0:02:54.7]} 3. d4 {[%clk 0:02:58.6]} 3... Bb7 {[%clk 0:02:54.5]}
4. g3 {[%clk 0:02:58.8]} 4... g6 {[%clk 0:02:53.2]} 5. Bg2 {[%clk 0:02:59.1]}
5... Bg7 {[%clk 0:02:53.8]} 6. O-O {[%clk 0:02:59.3]} 6... O-O {[%clk
0:02:54.3]} 7. Qc2 {[%clk 0:02:59.3]} 7... c5 {[%clk 0:02:30.9]} 8. d5 {[%clk
0:02:59.3]} 8... b5 {[%clk 0:02:28.5]} 9. Nc3 {[%clk 0:02:44.5]} 9... bxc4
{[%clk 0:02:26.4]} 10. Nd2 {[%clk 0:02:45.1]} 10... Na6 {[%clk 0:02:17.3]} 11.
a3 {[%clk 0:02:45]} 11... Rb8 {[%clk 0:02:00.2]} 12. Nxc4 {[%clk 0:02:42.5]}
12... d6 {[%clk 0:01:57.5]} 13. Rd1 {[%clk 0:02:30.4]} 13... Nc7 {[%clk
0:01:55.7]} 14. Rb1 {[%clk 0:02:27.9]} 14... Nd7 {[%clk 0:01:46.4]} 15. Na5
{[%clk 0:02:17.7]} 15... Na8 {[%clk 0:01:42.3]} 16. Nc6 {[%clk 0:02:09.4]} 16...
Bxc6 {[%clk 0:01:41.7]} 17. dxc6 {[%clk 0:02:10.3]} 17... Ndb6 {[%clk
0:01:41.2]} 18. b4 {[%clk 0:02:10]} 18... cxb4 {[%clk 0:01:38]} 19. axb4 {[%clk
0:02:09.8]} 19... Nc7 {[%clk 0:01:33]} 20. b5 {[%clk 0:02:08.6]} 20... a6 {[%clk
0:01:22.7]} 21. bxa6 {[%clk 0:02:07]} 21... Nxa6 {[%clk 0:01:23.6]} 22. Nb5
{[%clk 0:01:55.6]} 22... Nc7 {[%clk 0:01:19.8]} 23. Be3 {[%clk 0:01:53.1]} 23...
Nba8 {[%clk 0:01:19.5]} 24. Nxc7 {[%clk 0:01:49.8]} 24... Nxc7 {[%clk
0:01:14.6]} 25. Rb7 {[%clk 0:01:49.8]} 25... Na6 {[%clk 0:00:18.9]} 26. c7
{[%clk 0:01:42.6]} 26... Nxc7 {[%clk 0:00:17.8]} 27. Qxc7 {[%clk 0:01:41]} 27...
Rxb7 {[%clk 0:00:16.9]} 28. Qxd8 {[%clk 0:01:39.2]} 28... Rxd8 {[%clk
0:00:15.5]} 29. Bxb7 {[%clk 0:01:39.1]} 29... Bf6 {[%clk 0:00:14.5]} 30. Rc1
{[%clk 0:01:36.1]} 30... Kg7 {[%clk 0:00:14.5]} 31. Rc8 {[%clk 0:01:33.9]} 31...
Rd7 {[%clk 0:00:14.6]} 32. Bc6 {[%clk 0:01:33.9]} 1-0

[Event "*** Titled Tuesday Blitz"]
[Site "Chess.com"]
[Date "2021.03.30"]
[Round "9"]
[White "poneis_malditos"]
[Black "gaby_przz"]
[Result "0-1"]
[WhiteElo "2287"]
[BlackElo "2459"]
[TimeControl "180+1"]
[EndTime "11:45:13 PDT"]
[Termination "gaby_przz won by checkmate"]

1. e4 {[%clk 0:03:00.9]} 1... c5 {[%clk 0:02:57.7]} 2. Nc3 {[%clk 0:02:59]} 2...
Nc6 {[%clk 0:02:56.1]} 3. g3 {[%clk 0:02:59.4]} 3... Rb8 {[%clk 0:02:56.3]} 4.
Bg2 {[%clk 0:03:00.3]} 4... b5 {[%clk 0:02:55.4]} 5. d3 {[%clk 0:03:00.9]} 5...
g6 {[%clk 0:02:54.7]} 6. Be3 {[%clk 0:02:59.4]} 6... d6 {[%clk 0:02:51.9]} 7.
Qd2 {[%clk 0:02:58.6]} 7... Bg7 {[%clk 0:02:51.9]} 8. Nge2 {[%clk 0:02:52.1]}
8... Qa5 {[%clk 0:02:33.2]} 9. Nc1 {[%clk 0:02:46.9]} 9... b4 {[%clk 0:02:17.8]}
10. Nd1 {[%clk 0:02:46.4]} 10... Bd7 {[%clk 0:02:15.8]} 11. Nb3 {[%clk
0:02:45.8]} 11... Qc7 {[%clk 0:02:16.3]} 12. c3 {[%clk 0:02:42.1]} 12... Nf6
{[%clk 0:02:11.8]} 13. h3 {[%clk 0:02:41]} 13... a5 {[%clk 0:02:05.7]} 14. Bh6
{[%clk 0:02:38.1]} 14... Bxh6 {[%clk 0:02:05.5]} 15. Qxh6 {[%clk 0:02:39]} 15...
a4 {[%clk 0:02:06.4]} 16. Nd2 {[%clk 0:02:38.6]} 16... bxc3 {[%clk 0:02:00.5]}
17. bxc3 {[%clk 0:02:39.1]} 17... Ne5 {[%clk 0:02:00.7]} 18. Qe3 {[%clk
0:02:20.8]} 18... Bb5 {[%clk 0:01:56.6]} 19. c4 {[%clk 0:02:20.8]} 19... Bd7
{[%clk 0:01:56.6]} 20. O-O {[%clk 0:02:20.2]} 20... Nc6 {[%clk 0:01:56.5]} 21.
Nc3 {[%clk 0:02:16.2]} 21... Nd4 {[%clk 0:01:56.3]} 22. Rab1 {[%clk 0:02:10.4]}
22... O-O {[%clk 0:01:55.5]} 23. f4 {[%clk 0:02:07.7]} 23... Bc6 {[%clk
0:01:39.4]} 24. f5 {[%clk 0:02:00.6]} 24... Nd7 {[%clk 0:01:33.6]} 25. g4 {[%clk
0:01:50.4]} 25... Ne5 {[%clk 0:01:24.9]} 26. Nd5 {[%clk 0:01:46.5]} 26... Bxd5
{[%clk 0:01:24.2]} 27. exd5 {[%clk 0:01:47.4]} 27... Rxb1 {[%clk 0:01:18.9]} 28.
Nxb1 {[%clk 0:01:46.9]} 28... Rb8 {[%clk 0:01:19.8]} 29. fxg6 {[%clk 0:01:44.7]}
29... hxg6 {[%clk 0:01:19.5]} 30. Nc3 {[%clk 0:01:40.7]} 30... a3 {[%clk
0:01:12.8]} 31. Ne4 {[%clk 0:01:30.4]} 31... Rb2 {[%clk 0:01:07.3]} 32. Ng5
{[%clk 0:01:30.3]} 32... Qa5 {[%clk 0:01:02.5]} 33. Qe4 {[%clk 0:01:27]} 33...
Qd2 {[%clk 0:00:45.3]} 34. Nxf7 {[%clk 0:01:11.4]} 34... Nef3+ {[%clk
0:00:43.8]} 35. Rxf3 {[%clk 0:01:10.8]} 35... Qxg2# {[%clk 0:00:43.5]} 0-1

[Event "*** Titled Tuesday Blitz"]
[Site "Chess.com"]
[Date "2021.03.30"]
[Round "9"]
[White "BJthechessgod"]
[Black "karinachess1"]
[Result "0-1"]
[WhiteElo "2327"]
[BlackElo "2493"]
[TimeControl "180+1"]
[EndTime "11:45:17 PDT"]
[Termination "karinachess1 won by resignation"]

1. e4 {[%clk 0:02:50]} 1... e5 {[%clk 0:02:59.3]} 2. Nf3 {[%clk 0:02:49.6]} 2...
d5 {[%clk 0:02:59.2]} 3. exd5 {[%clk 0:02:48.5]} 3... e4 {[%clk 0:02:59.4]} 4.
Qe2 {[%clk 0:02:39.7]} 4... Nf6 {[%clk 0:02:59.1]} 5. Nc3 {[%clk 0:02:35]} 5...
Be7 {[%clk 0:02:58.9]} 6. Nxe4 {[%clk 0:02:26]} 6... O-O {[%clk 0:02:58.9]} 7.
d3 {[%clk 0:02:23.3]} 7... Nxd5 {[%clk 0:02:58.6]} 8. Bd2 {[%clk 0:02:21.8]}
8... f5 {[%clk 0:02:57.6]} 9. Nc3 {[%clk 0:02:21.2]} 9... Bf6 {[%clk 0:02:37.4]}
10. Qd1 {[%clk 0:01:59.2]} 10... Re8+ {[%clk 0:02:30.1]} 11. Be2 {[%clk
0:01:59]} 11... Bxc3 {[%clk 0:02:00.5]} 12. bxc3 {[%clk 0:01:58.6]} 12... Qe7
{[%clk 0:01:56.7]} 13. c4 {[%clk 0:01:54.8]} 13... Nf6 {[%clk 0:01:50.6]} 14. h3
{[%clk 0:01:42.6]} 14... Nc6 {[%clk 0:01:39.7]} 15. Be3 {[%clk 0:01:40.1]} 15...
Nh5 {[%clk 0:01:05.8]} 16. g3 {[%clk 0:01:03.4]} 16... Nxg3 {[%clk 0:01:03.6]}
17. fxg3 {[%clk 0:00:59.4]} 17... Qxe3 {[%clk 0:01:02.8]} 18. Rf1 {[%clk
0:00:47]} 18... Nd4 {[%clk 0:00:58.2]} 19. Nxd4 {[%clk 0:00:47.3]} 19... Qxd4
{[%clk 0:00:59.1]} 20. Kd2 {[%clk 0:00:42.3]} 20... Qe3+ {[%clk 0:00:52.4]} 21.
Ke1 {[%clk 0:00:40.9]} 21... Qxg3+ {[%clk 0:00:52]} 22. Kd2 {[%clk 0:00:34]}
22... Qe3+ {[%clk 0:00:50.4]} 23. Ke1 {[%clk 0:00:34.3]} 23... f4 {[%clk
0:00:50.6]} 24. Rf3 {[%clk 0:00:33.4]} 24... Qxf3 {[%clk 0:00:48.8]} 0-1

[Event "*** Titled Tuesday Blitz"]
[Site "Chess.com"]
[Date "2021.03.30"]
[Round "9"]
[White "DeTimmerman"]
[Black "albi1999"]
[Result "1-0"]
[WhiteElo "2754"]
[BlackElo "2613"]
[TimeControl "180+1"]
[EndTime "11:45:29 PDT"]
[Termination "DeTimmerman won by checkmate"]

1. b4 {[%clk 0:03:00.9]} 1... e5 {[%clk 0:02:49.9]} 2. Bb2 {[%clk 0:02:59.5]}
2... Bxb4 {[%clk 0:02:49.2]} 3. Bxe5 {[%clk 0:02:58.8]} 3... Nf6 {[%clk
0:02:49.7]} 4. Nc3 {[%clk 0:02:58.2]} 4... O-O {[%clk 0:02:45.4]} 5. Bxf6 {[%clk
0:02:58.1]} 5... Qxf6 {[%clk 0:02:44.9]} 6. Nd5 {[%clk 0:02:59]} 6... Qd6 {[%clk
0:02:42.6]} 7. c4 {[%clk 0:02:58]} 7... Ba5 {[%clk 0:02:38.2]} 8. e3 {[%clk
0:02:57.4]} 8... c6 {[%clk 0:02:26.5]} 9. Nf4 {[%clk 0:02:57.4]} 9... Re8 {[%clk
0:02:09.7]} 10. Be2 {[%clk 0:02:57.3]} 10... Qf6 {[%clk 0:01:59.3]} 11. Nf3
{[%clk 0:02:57.1]} 11... Bc7 {[%clk 0:01:57.9]} 12. Nh5 {[%clk 0:02:56.1]} 12...
Qg6 {[%clk 0:01:54.4]} 13. Ng3 {[%clk 0:02:56.4]} 13... d6 {[%clk 0:01:54]} 14.
O-O {[%clk 0:02:56]} 14... Nd7 {[%clk 0:01:54.3]} 15. d4 {[%clk 0:02:55.3]}
15... Nf6 {[%clk 0:01:54.9]} 16. Rb1 {[%clk 0:02:50.4]} 16... d5 {[%clk
0:01:54.8]} 17. Bd3 {[%clk 0:02:29.8]} 17... Qh6 {[%clk 0:01:49]} 18. Qc2 {[%clk
0:02:28.1]} 18... Bg4 {[%clk 0:01:41.1]} 19. Rxb7 {[%clk 0:02:23.4]} 19... Rac8
{[%clk 0:01:28.1]} 20. Bf5 {[%clk 0:02:01.7]} 20... Bxf5 {[%clk 0:01:12.9]} 21.
Qxf5 {[%clk 0:02:02.6]} 21... dxc4 {[%clk 0:01:09.1]} 22. Rc1 {[%clk 0:02:03]}
22... Bb6 {[%clk 0:01:00.7]} 23. Rxc4 {[%clk 0:02:01.4]} 23... Re6 {[%clk
0:00:51.2]} 24. Ne5 {[%clk 0:01:56.3]} 24... Rce8 {[%clk 0:00:40.9]} 25. Rxc6
{[%clk 0:01:41.8]} 25... Bxd4 {[%clk 0:00:23.5]} 26. Ng4 {[%clk 0:01:13.6]}
26... Nxg4 {[%clk 0:00:21.3]} 27. Qxf7+ {[%clk 0:01:13.3]} 27... Kh8 {[%clk
0:00:21.7]} 28. Rxe6 {[%clk 0:01:12.2]} 28... Qxh2+ {[%clk 0:00:16.2]} 29. Kf1
{[%clk 0:01:11.5]} 29... Rg8 {[%clk 0:00:13.8]} 30. Qxg8+ {[%clk 0:01:11.8]}
30... Kxg8 {[%clk 0:00:13.4]} 31. Re8# {[%clk 0:01:12.7]} 1-0

[Event "*** Titled Tuesday Blitz"]
[Site "Chess.com"]
[Date "2021.03.30"]
[Round "9"]
[White "MasterMK73"]
[Black "Smile2005"]
[Result "0-1"]
[WhiteElo "2262"]
[BlackElo "2435"]
[TimeControl "180+1"]
[EndTime "11:45:33 PDT"]
[Termination "Smile2005 won by resignation"]

1. e4 {[%clk 0:03:00.9]} 1... c5 {[%clk 0:02:55.9]} 2. Nf3 {[%clk 0:02:55.8]}
2... a6 {[%clk 0:02:55.8]} 3. c4 {[%clk 0:02:53.9]} 3... g6 {[%clk 0:02:54.8]}
4. Nc3 {[%clk 0:02:50.4]} 4... Bg7 {[%clk 0:02:54.5]} 5. d4 {[%clk 0:02:45.4]}
5... cxd4 {[%clk 0:02:54.5]} 6. Nxd4 {[%clk 0:02:45.4]} 6... d6 {[%clk
0:02:54.9]} 7. Be2 {[%clk 0:02:37.9]} 7... Nc6 {[%clk 0:02:54.6]} 8. Nc2 {[%clk
0:02:28.9]} 8... Nf6 {[%clk 0:02:51.8]} 9. Be3 {[%clk 0:02:27.1]} 9... O-O
{[%clk 0:02:50.3]} 10. O-O {[%clk 0:02:24.9]} 10... Be6 {[%clk 0:02:42.6]} 11.
Rc1 {[%clk 0:02:21.2]} 11... Rc8 {[%clk 0:02:42]} 12. f3 {[%clk 0:02:15.4]}
12... Ne5 {[%clk 0:02:19.5]} 13. b3 {[%clk 0:02:09.2]} 13... b5 {[%clk
0:02:19.2]} 14. Nd4 {[%clk 0:02:04.8]} 14... bxc4 {[%clk 0:02:17.9]} 15. Nxe6
{[%clk 0:02:04.5]} 15... fxe6 {[%clk 0:02:17.6]} 16. Na4 {[%clk 0:01:54.5]}
16... cxb3 {[%clk 0:02:11.6]} 17. Qxb3 {[%clk 0:01:54.2]} 17... d5 {[%clk
0:02:03.7]} 18. Nc5 {[%clk 0:01:50]} 18... Qd6 {[%clk 0:01:55.9]} 19. f4 {[%clk
0:01:47.1]} 19... Rb8 {[%clk 0:01:15]} 20. Qa3 {[%clk 0:01:20.7]} 20... Nxe4
{[%clk 0:01:12]} 21. fxe5 {[%clk 0:01:19.9]} 21... Bxe5 {[%clk 0:01:09.6]} 22.
h3 {[%clk 0:00:19.2]} 22... Bh2+ {[%clk 0:01:08.3]} 23. Kh1 {[%clk 0:00:19.3]}
23... Ng3+ {[%clk 0:01:05.4]} 0-1

[Event "*** Titled Tuesday Blitz"]
[Site "Chess.com"]
[Date "2021.03.30"]
[Round "9"]
[White "ViktoriyaTarasova"]
[Black "Baron_von_Koenig"]
[Result "1-0"]
[WhiteElo "2422"]
[BlackElo "2538"]
[TimeControl "180+1"]
[EndTime "11:45:34 PDT"]
[Termination "ViktoriyaTarasova won by checkmate"]

1. d4 {[%clk 0:03:00.9]} 1... b6 {[%clk 0:02:59.8]} 2. e4 {[%clk 0:02:59.6]}
2... Bb7 {[%clk 0:03:00.1]} 3. Bd3 {[%clk 0:02:59.4]} 3... Nf6 {[%clk
0:03:00.4]} 4. Qe2 {[%clk 0:02:58.3]} 4... Nc6 {[%clk 0:02:58.5]} 5. c3 {[%clk
0:02:54.7]} 5... e5 {[%clk 0:02:58]} 6. d5 {[%clk 0:02:50.8]} 6... Ne7 {[%clk
0:02:56.6]} 7. Nf3 {[%clk 0:02:51.4]} 7... Ng6 {[%clk 0:02:56.5]} 8. h4 {[%clk
0:02:49.7]} 8... d6 {[%clk 0:02:55.8]} 9. h5 {[%clk 0:02:48.8]} 9... Ne7 {[%clk
0:02:55.8]} 10. h6 {[%clk 0:02:47.1]} 10... g6 {[%clk 0:02:53.5]} 11. Bg5 {[%clk
0:02:46.6]} 11... Nd7 {[%clk 0:02:53.5]} 12. Bb5 {[%clk 0:02:32.5]} 12... c6
{[%clk 0:02:52.7]} 13. dxc6 {[%clk 0:02:25.5]} 13... Bxc6 {[%clk 0:02:50.5]} 14.
Bxc6 {[%clk 0:02:25.1]} 14... Rc8 {[%clk 0:02:49.1]} 15. Ba4 {[%clk 0:02:20]}
15... Qc7 {[%clk 0:02:46]} 16. Nbd2 {[%clk 0:02:14]} 16... Nc6 {[%clk
0:02:45.7]} 17. Qc4 {[%clk 0:01:38.2]} 17... Qb7 {[%clk 0:02:39]} 18. Qe2 {[%clk
0:01:31.6]} 18... a6 {[%clk 0:02:31.3]} 19. Be3 {[%clk 0:01:25]} 19... Be7
{[%clk 0:02:25.2]} 20. Bb3 {[%clk 0:01:24.3]} 20... Na5 {[%clk 0:02:11.2]} 21.
Bd5 {[%clk 0:01:24.1]} 21... Qa7 {[%clk 0:02:11.2]} 22. Rc1 {[%clk 0:01:21.9]}
22... Nf6 {[%clk 0:02:10.3]} 23. b4 {[%clk 0:01:20.9]} 23... Nb7 {[%clk
0:01:59.3]} 24. Bb3 {[%clk 0:01:20.4]} 24... O-O {[%clk 0:01:52.1]} 25. a4
{[%clk 0:01:16.2]} 25... a5 {[%clk 0:01:51]} 26. O-O {[%clk 0:01:12.2]} 26...
Rc6 {[%clk 0:01:17.2]} 27. Bg5 {[%clk 0:01:02.4]} 27... Rfc8 {[%clk 0:01:14.8]}
28. Bxf6 {[%clk 0:01:01.9]} 28... Bxf6 {[%clk 0:01:13.6]} 29. bxa5 {[%clk
0:00:39.9]} 29... Nxa5 {[%clk 0:01:10.1]} 30. Bd5 {[%clk 0:00:39.7]} 30... Rxc3
{[%clk 0:01:09.2]} 31. Rxc3 {[%clk 0:00:40.3]} 31... Rxc3 {[%clk 0:01:08.8]} 32.
Qb5 {[%clk 0:00:40.9]} 32... Rc7 {[%clk 0:00:52.6]} 33. Qe8# {[%clk 0:00:38]}
1-0

[Event "*** Titled Tuesday Blitz"]
[Site "Chess.com"]
[Date "2021.03.30"]
[Round "9"]
[White "m-garcett"]
[Black "chessmachine14"]
[Result "1-0"]
[WhiteElo "2154"]
[BlackElo "2312"]
[TimeControl "180+1"]
[EndTime "11:45:34 PDT"]
[Termination "m-garcett won on time"]

1. e4 {[%clk 0:03:00.9]} 1... c5 {[%clk 0:02:57.6]} 2. Nf3 {[%clk 0:03:00.7]}
2... g6 {[%clk 0:02:52.6]} 3. d4 {[%clk 0:03:00.7]} 3... cxd4 {[%clk 0:02:52.7]}
4. Qxd4 {[%clk 0:03:01]} 4... Nf6 {[%clk 0:02:39.2]} 5. Nc3 {[%clk 0:03:00.5]}
5... Bg7 {[%clk 0:02:32.7]} 6. e5 {[%clk 0:02:57]} 6... Nc6 {[%clk 0:02:32.5]}
7. Qa4 {[%clk 0:02:56]} 7... Ng8 {[%clk 0:02:22.4]} 8. Bf4 {[%clk 0:02:56.2]}
8... Nh6 {[%clk 0:02:17.7]} 9. O-O-O {[%clk 0:02:56.4]} 9... O-O {[%clk
0:02:17.5]} 10. Bc4 {[%clk 0:02:50.9]} 10... a6 {[%clk 0:01:42.8]} 11. e6 {[%clk
0:02:45]} 11... fxe6 {[%clk 0:01:36.1]} 12. Bxe6+ {[%clk 0:02:44.6]} 12... Kh8
{[%clk 0:01:36.4]} 13. Qe4 {[%clk 0:02:38.2]} 13... Qa5 {[%clk 0:00:54.2]} 14.
Bb3 {[%clk 0:02:33]} 14... Nf5 {[%clk 0:00:42.6]} 15. g4 {[%clk 0:02:20.4]}
15... d6 {[%clk 0:00:08]} 16. gxf5 {[%clk 0:02:17.5]} 16... Bxf5 {[%clk
0:00:08.9]} 17. Qe3 {[%clk 0:02:07.4]} 17... e5 {[%clk 0:00:08]} 18. Bh6 {[%clk
0:02:03.1]} 18... Nb4 {[%clk 0:00:07.2]} 19. Bxg7+ {[%clk 0:02:01]} 19... Kxg7
{[%clk 0:00:07.1]} 20. Nd2 {[%clk 0:01:46]} 20... Rac8 {[%clk 0:00:05.6]} 21.
Nde4 {[%clk 0:01:42.1]} 21... d5 {[%clk 0:00:05]} 22. Nxd5 {[%clk 0:01:34.3]}
22... Nxa2+ {[%clk 0:00:04.2]} 23. Kb1 {[%clk 0:01:21.1]} 23... Nb4 {[%clk
0:00:03.9]} 24. Nec3 {[%clk 0:01:18.7]} 24... Nxd5 {[%clk 0:00:01.7]} 25. Rxd5
{[%clk 0:01:14.5]} 25... Qb6 {[%clk 0:00:01.7]} 26. Qxe5+ {[%clk 0:01:14.3]} 1-0

[Event "*** Titled Tuesday Blitz"]
[Site "Chess.com"]
[Date "2021.03.30"]
[Round "9"]
[White "lukazz029"]
[Black "VladimirBugayev"]
[Result "1-0"]
[WhiteElo "2170"]
[BlackElo "2263"]
[TimeControl "180+1"]
[EndTime "11:45:39 PDT"]
[Termination "lukazz029 won on time"]

1. e4 {[%clk 0:03:00.9]} 1... c6 {[%clk 0:02:59.5]} 2. d4 {[%clk 0:02:58.7]}
2... d5 {[%clk 0:02:59.4]} 3. Nc3 {[%clk 0:02:49.7]} 3... dxe4 {[%clk
0:02:59.3]} 4. Nxe4 {[%clk 0:02:46.6]} 4... Nf6 {[%clk 0:02:59.9]} 5. Nxf6+
{[%clk 0:02:41.3]} 5... exf6 {[%clk 0:03:00.8]} 6. c3 {[%clk 0:02:39]} 6... Bd6
{[%clk 0:02:59.8]} 7. Bc4 {[%clk 0:02:38.5]} 7... O-O {[%clk 0:02:57.6]} 8. Ne2
{[%clk 0:02:38.6]} 8... Re8 {[%clk 0:02:44.8]} 9. O-O {[%clk 0:02:21.7]} 9...
Be6 {[%clk 0:02:37.4]} 10. Bd3 {[%clk 0:02:17.7]} 10... Nd7 {[%clk 0:02:32.5]}
11. Ng3 {[%clk 0:02:15.8]} 11... g6 {[%clk 0:02:27.4]} 12. Re1 {[%clk
0:02:10.7]} 12... Qc7 {[%clk 0:02:26.3]} 13. b3 {[%clk 0:02:09.2]} 13... b5
{[%clk 0:02:19.4]} 14. c4 {[%clk 0:02:08.8]} 14... bxc4 {[%clk 0:02:13.8]} 15.
bxc4 {[%clk 0:02:09.7]} 15... Bb4 {[%clk 0:01:37.6]} 16. Bd2 {[%clk 0:02:07.5]}
16... Bf8 {[%clk 0:01:37.3]} 17. Rc1 {[%clk 0:02:03.9]} 17... Nb6 {[%clk
0:01:35.3]} 18. Qf3 {[%clk 0:01:57.4]} 18... Qd7 {[%clk 0:01:16.9]} 19. Be3
{[%clk 0:01:51.3]} 19... f5 {[%clk 0:01:16]} 20. Ne2 {[%clk 0:01:48.4]} 20...
Rad8 {[%clk 0:00:57.1]} 21. Nf4 {[%clk 0:01:40.2]} 21... Bg7 {[%clk 0:00:55.3]}
22. Nxe6 {[%clk 0:01:34.6]} 22... Rxe6 {[%clk 0:00:47.5]} 23. Red1 {[%clk
0:01:33.7]} 23... Rd6 {[%clk 0:00:31.2]} 24. c5 {[%clk 0:01:26.4]} 24... Rd5
{[%clk 0:00:19.5]} 25. cxb6 {[%clk 0:01:19.5]} 25... axb6 {[%clk 0:00:19.5]} 26.
Bc4 {[%clk 0:01:19.9]} 26... Ra5 {[%clk 0:00:19]} 27. Bb3 {[%clk 0:01:18.1]}
27... Qe7 {[%clk 0:00:15.5]} 28. g3 {[%clk 0:01:16.4]} 28... c5 {[%clk
0:00:13.7]} 29. dxc5 {[%clk 0:01:16.2]} 29... Rxd1+ {[%clk 0:00:13.3]} 30. Rxd1
{[%clk 0:01:17.1]} 30... bxc5 {[%clk 0:00:13.4]} 31. Qd5 {[%clk 0:01:16.5]} 1-0

[Event "*** Titled Tuesday Blitz"]
[Site "Chess.com"]
[Date "2021.03.30"]
[Round "9"]
[White "attack2mateU"]
[Black "Taktikmonster"]
[Result "1-0"]
[WhiteElo "2732"]
[BlackElo "2391"]
[TimeControl "180+1"]
[EndTime "11:45:44 PDT"]
[Termination "attack2mateU won by checkmate"]

1. e4 {[%clk 0:03:00.9]} 1... c5 {[%clk 0:02:59.8]} 2. Nf3 {[%clk 0:03:00.9]}
2... d6 {[%clk 0:03:00.2]} 3. d4 {[%clk 0:03:00.8]} 3... cxd4 {[%clk 0:03:01.1]}
4. Nxd4 {[%clk 0:03:01.5]} 4... Nf6 {[%clk 0:03:00.3]} 5. Nc3 {[%clk 0:03:02.1]}
5... Nc6 {[%clk 0:03:00.6]} 6. Bg5 {[%clk 0:03:01]} 6... e6 {[%clk 0:03:00.6]}
7. Qd2 {[%clk 0:03:01.2]} 7... a6 {[%clk 0:03:00.8]} 8. O-O-O {[%clk 0:03:01.4]}
8... Bd7 {[%clk 0:03:01.1]} 9. f3 {[%clk 0:03:01.1]} 9... Nxd4 {[%clk
0:03:00.7]} 10. Qxd4 {[%clk 0:03:01]} 10... h6 {[%clk 0:03:01.3]} 11. Be3 {[%clk
0:03:00.8]} 11... Bc6 {[%clk 0:03:00.7]} 12. Kb1 {[%clk 0:02:56.4]} 12... d5
{[%clk 0:03:00.4]} 13. e5 {[%clk 0:02:50.1]} 13... Nd7 {[%clk 0:02:59.9]} 14. f4
{[%clk 0:02:48.7]} 14... Be7 {[%clk 0:02:59.2]} 15. Qd2 {[%clk 0:02:26.1]} 15...
Qa5 {[%clk 0:02:39.3]} 16. Qf2 {[%clk 0:01:59]} 16... O-O {[%clk 0:02:18.5]} 17.
Ne2 {[%clk 0:01:37.6]} 17... Nc5 {[%clk 0:02:18.4]} 18. Nd4 {[%clk 0:01:21.6]}
18... Ne4 {[%clk 0:02:15.9]} 19. Qf3 {[%clk 0:01:15.4]} 19... Bd7 {[%clk
0:02:00]} 20. Bd3 {[%clk 0:01:11.5]} 20... Nc5 {[%clk 0:02:00.1]} 21. f5 {[%clk
0:01:07.4]} 21... Nxd3 {[%clk 0:01:55.9]} 22. Rxd3 {[%clk 0:01:05.1]} 22... exf5
{[%clk 0:01:55.3]} 23. Nxf5 {[%clk 0:01:06]} 23... Bxf5 {[%clk 0:01:45.6]} 24.
Qxf5 {[%clk 0:01:05.4]} 24... Rad8 {[%clk 0:01:39.7]} 25. Rf1 {[%clk 0:00:52.6]}
25... Qb4 {[%clk 0:01:35.9]} 26. Rd4 {[%clk 0:00:48.7]} 26... Qb5 {[%clk
0:01:33.2]} 27. Rg4 {[%clk 0:00:37.3]} 27... g6 {[%clk 0:01:18.6]} 28. Bxh6
{[%clk 0:00:29.8]} 28... Ba3 {[%clk 0:01:02.3]} 29. Rxg6+ {[%clk 0:00:22.2]}
29... Kh7 {[%clk 0:00:49.7]} 30. Rg7+ {[%clk 0:00:20.8]} 30... Kxh6 {[%clk
0:00:49.4]} 31. Qg5# {[%clk 0:00:21]} 1-0